bitfinex/quotes_ETHUSD_20240928
["timestamp","ask_amount","ask_price","bid_price","bid_amount"]
[1727525056860,2.0,2678.5,2678.4,1.96293434]
[1727525057068,2.0,2679.0,2678.5,6.96893329]
[1727525057276,3.73242,2679.3,2678.6,4.40640534]
[1727525057582,3.73248,2679.2,2678.3,5.30077368]
[1727525057784,0.8043,2679.0,2678.3,5.30077368]
[1727525057973,0.8043,2679.0,2678.3,3.73361]
[1727525058144,0.04285236,2678.9,2678.3,3.73361]
[1727525058485,0.04285236,2678.9,2678.0,31.06212779]
[1727525058486,2.0,2678.8,2678.0,34.79619779]
[1727525058687,2.0,2678.8,2678.0,34.21918583]
[1727525058860,3.77504486,2678.7,2678.0,37.95329583]
[1727525059189,3.77504486,2678.7,2678.1,3.81628408]
[1727525061847,3.77504486,2678.7,2678.1,7.55025408]
[1727525062073,7.50829486,2678.7,2678.1,3.81628408]
[1727525062790,0.04186486,2678.7,2678.0,34.21918583]
[1727525063003,3.73352,2678.5,2678.0,34.21918583]
[1727525063189,3.77544486,2678.4,2678.0,34.21918583]
[1727525063569,0.04186486,2678.4,2678.0,34.21918583]
[1727525064205,0.84616486,2678.4,2678.0,31.06212779]
[1727525064415,4.57977486,2678.4,2678.0,31.06212779]
[1727525065466,3.73372,2678.3,2678.0,31.06212779]
[1727525065805,0.04148276,2678.2,2678.0,31.06212779]
[1727525066307,3.73372,2678.3,2678.0,31.06212779]
[1727525066518,0.04148276,2678.1,2678.0,31.06212779]
[1727525066803,0.04148276,2678.2,2678.0,31.06212779]
[1727525067103,3.73372,2678.3,2678.0,31.06212779]
[1727525067306,0.04148276,2678.1,2678.0,31.06212779]
[1727525067612,0.42964663,2678.2,2678.0,31.06212779]
[1727525067777,0.38816387,2678.2,2678.0,31.06212779]
[1727525067983,0.04148276,2678.1,2678.0,31.06212779]
[1727525069027,2.38816387,2678.2,2678.0,31.06212779]
[1727525069164,3.73399,2678.1,2678.0,31.06212779]
[1727525069371,3.77547276,2678.1,2678.0,31.06212779]
[1727525070481,0.04148276,2678.1,2678.0,31.06212779]
[1727525070810,0.42933226,2678.1,2678.0,31.06212779]
[1727525093183,7.97902226,2678.1,2678.0,31.06212779]
[1727525104735,7.16332226,2678.1,2678.0,31.06212779]
[1727525105277,8.73329418,2678.1,2678.0,31.06212779]
[1727525107990,9.12406871,2678.1,2678.0,31.06212779]
[1727525116003,7.55409679,2678.1,2678.0,31.06212779]
[1727525121676,8.13976142,2678.1,2678.0,31.06212779]
[1727525132181,8.27121465,2678.1,2678.0,31.06212779]
[1727525139427,5.27121465,2678.1,2678.0,31.06212779]
[1727525155838,4.68555002,2678.1,2678.0,31.06212779]
[1727525157536,4.29477549,2678.1,2678.0,31.06212779]
[1727525159886,0.56078549,2678.1,2678.0,32.71206768]
[1727525160485,0.16347052,2678.1,2678.0,32.71206768]
[1727525162394,0.16347052,2678.1,2678.0,31.89532779]
[1727525166189,2.0,2678.2,2678.0,31.89532779]
[1727525166575,0.1390155,2678.1,2678.0,31.89532779]
[1727525166795,2.0,2678.2,2678.0,31.89532779]
[1727525167300,0.13468216,2678.1,2678.0,31.89532779]
[1727525167597,0.13468216,2678.1,2678.0,35.62944779]
[1727525167791,0.13468216,2678.1,2678.0,31.89532779]
[1727525169001,0.13468216,2678.1,2678.0,33.83593642]
[1727525169304,0.13468216,2678.1,2678.0,37.57005642]
[1727525169607,0.13468216,2678.1,2678.0,33.83593642]
[1727525169960,2.0,2678.2,2678.0,33.83593642]
[1727525170161,2.0,2678.2,2678.0,37.57003642]
[1727525170407,0.12605677,2678.1,2678.0,33.83593642]
[1727525170773,0.12605677,2678.1,2678.0,37.57005642]
[1727525170977,2.0,2678.2,2678.0,37.57005642]
[1727525171288,0.12605677,2678.1,2678.0,37.57005642]
[1727525172001,0.38599563,2678.3,2678.0,33.83593642]
[1727525172187,0.12605677,2678.1,2678.0,33.83593642]
[1727525172388,0.38599563,2678.3,2678.0,33.83593642]
[1727525172687,0.12185488,2678.2,2678.0,33.83593642]
[1727525172997,0.38599563,2678.3,2678.1,0.57460229]
[1727525179784,0.11515194,2678.2,2678.1,0.57460229]
[1727525179984,0.38599563,2678.3,2678.1,0.57460229]
[1727525180218,0.11515194,2678.2,2678.1,0.57460229]
[1727525180518,0.38599563,2678.3,2678.1,0.57460229]
[1727525180733,0.11515194,2678.2,2678.1,0.57460229]
[1727525181184,0.38599563,2678.3,2678.1,0.57460229]
[1727525181384,0.11515194,2678.2,2678.1,0.57460229]
[1727525181597,0.38599563,2678.3,2678.1,0.57460229]
[1727525181815,0.11515194,2678.2,2678.1,0.57460229]
[1727525182011,0.38599563,2678.3,2678.1,0.57460229]
[1727525182211,0.11515194,2678.2,2678.0,35.07593642]
[1727525182487,0.11515194,2678.1,2678.0,35.07593642]
[1727525182824,0.38599563,2678.3,2678.0,35.07593642]
[1727525183183,0.11515194,2678.2,2678.0,35.07593642]
[1727525183379,0.38599563,2678.3,2678.0,35.07593642]
[1727525183586,0.11515194,2678.1,2678.0,35.07593642]
[1727525183821,0.38599563,2678.3,2678.0,35.07593642]
[1727525184182,0.11515194,2678.2,2678.0,35.07593642]
[1727525184383,0.38599563,2678.3,2678.1,1.34454371]
[1727525186610,0.38599563,2678.3,2678.0,32.30212779]
[1727525186611,2.0,2678.2,2678.0,32.30212779]
[1727525186807,3.73399,2678.1,2678.0,32.30212779]
[1727525187014,5.73385,2678.2,2678.0,32.30212779]
[1727525192726,2.0,2678.2,2678.0,32.30212779]
[1727525197157,0.7573,2678.1,2678.0,32.30212779]
[1727525197323,4.49129,2678.1,2678.0,32.30212779]
[1727525198231,3.73399,2678.1,2678.0,32.30212779]
[1727525198627,3.84899645,2678.1,2678.0,32.30212779]
[1727525212478,3.84797064,2678.1,2678.0,32.30212779]
[1727525224773,7.65047064,2678.1,2678.0,32.30212779]
[1727525229722,4.65047064,2678.1,2678.0,32.30212779]
[1727525230829,3.84797064,2678.1,2678.0,32.30212779]
[1727525235990,4.66097064,2678.1,2678.0,32.30212779]
[1727525248241,3.84797064,2678.1,2678.0,32.30212779]
[1727525295456,4.67387064,2678.1,2678.0,32.30212779]
[1727525296095,5.25952313,2678.1,2678.0,32.30212779]
[1727525296873,8.25952313,2678.1,2678.0,32.30212779]
[1727525309860,7.43362313,2678.1,2678.0,32.30212779]
[1727525311961,3.70065894,2678.1,2678.0,31.06212779]
[1727525312393,7.43464894,2678.1,2678.0,31.06212779]
[1727525327742,7.40368033,2678.1,2678.0,31.06212779]
[1727525329624,7.40368033,2678.1,2678.0,31.88142779]
[1727525332245,7.40368033,2678.1,2678.0,31.06212779]
[1727525355565,7.40254724,2678.1,2678.0,31.06212779]
[1727525374892,4.40254724,2678.1,2678.0,31.06212779]
[1727525398412,5.15794724,2678.1,2678.0,31.06212779]
[1727525399140,9.5852549,2678.1,2678.0,31.06212779]
[1727525401625,8.8298549,2678.1,2678.0,31.06212779]
[1727525421837,9.5973549,2678.1,2678.0,31.06212779]
[1727525422170,12.5973549,2678.1,2678.0,31.06212779]
[1727525432502,12.65493214,2678.1,2678.0,31.06212779]
[1727525435015,18.89193214,2678.1,2678.0,22.85226771]
[1727525435193,29.26450714,2678.1,2678.0,22.85226771]
[1727525435404,30.83447906,2678.1,2678.0,22.85226771]
[1727525436413,33.08147906,2678.1,2678.0,22.85226771]
[1727525441298,36.96724631,2678.1,2678.0,22.85226771]
[1727525444604,33.08147906,2678.1,2678.0,22.85226771]
[1727525445006,36.96724631,2678.1,2678.0,22.85226771]
[1727525445306,33.08147906,2678.1,2678.0,22.85226771]
[1727525448237,36.96724631,2678.1,2678.0,22.85226771]
[1727525448434,33.08147906,2678.1,2678.0,22.85226771]
[1727525449870,36.96724631,2678.1,2678.0,22.85226771]
[1727525450179,33.08147906,2678.1,2678.0,22.85226771]
[1727525452239,68.97190406,2678.1,2678.0,22.85226771]
[1727525455684,73.39821806,2678.1,2678.0,22.85226771]
[1727525457739,73.39505613,2678.1,2678.0,22.85226771]
[1727525459687,72.85450938,2678.1,2678.0,22.85226771]
[1727525462586,68.97190406,2678.1,2678.0,22.85226771]
[1727525464374,72.85450938,2678.1,2678.0,22.85226771]
[1727525464982,68.97190406,2678.1,2678.0,22.85226771]
[1727525465388,72.85450938,2678.1,2678.0,22.85226771]
[1727525472480,68.97190406,2678.1,2678.0,22.85226771]
[1727525472706,69.56245081,2678.1,2678.0,17.18203191]
[1727525473600,19.06245081,2678.1,2678.0,17.18203191]
[1727525473796,45.6075156,2678.1,2678.0,17.18203191]
[1727525475208,45.6075156,2678.1,2678.0,11.51179611]
[1727525478121,45.6075156,2678.1,2678.0,5.84156031]
[1727525486701,65.0575156,2678.1,2678.0,5.84156031]
[1727525487514,65.0575156,2678.1,2678.0,0.17132451]
[1727525487691,5.73524,2677.2,2677.1,0.63486145]
[1727525487904,64.04489937,2677.2,2677.1,0.63486145]
[1727525488132,60.94531906,2677.2,2677.1,0.63486145]
[1727525488315,60.61240269,2677.2,2677.1,0.63486145]
[1727525488623,58.07000269,2677.2,2677.1,0.63486145]
[1727525489430,58.06961492,2677.2,2677.1,0.63486145]
[1727525489992,2.0,2676.9,2675.8,3.73714]
[1727525490198,2.0,2676.9,2674.8,5.70082219]
[1727525490199,2.0,2674.2,2674.1,0.8768959]
[1727525490420,3.73826,2675.1,2674.2,0.36681517]
[1727525490694,3.0,2675.4,2674.1,2.07431468]
[1727525490695,2.0,2674.4,2674.1,0.8526]
[1727525490897,2.0,2674.4,2674.3,0.7526]
[1727525491123,1.95546166,2674.8,2674.3,5.30925192]
[1727525491124,2.0,2674.7,2674.3,5.30925192]
[1727525491292,2.0,2674.7,2674.4,2.12164026]
[1727525491510,2.0,2674.7,2674.4,1.56997192]
[1727525492620,2.0,2674.7,2674.6,1.56997192]
[1727525494233,2.0,2674.7,2674.6,2.40117192]
[1727525494933,2.0,2675.1,2674.6,5.38358908]
[1727525495106,2.0,2675.1,2675.0,2.40117192]
[1727525495335,2.0,2675.3,2675.1,0.8312]
[1727525495659,2.0,2675.3,2675.0,5.30825192]
[1727525495660,2.0,2675.3,2675.2,2.40117192]
[1727525496720,2.0,2675.3,2675.2,0.8312]
[1727525496914,2.0,2675.3,2675.2,2.40117192]
[1727525498661,2.13231582,2675.3,2675.2,2.40117192]
[1727525502560,2.13231582,2675.3,2675.2,0.8312]
[1727525502793,2.0,2674.6,2674.4,3.73905]
[1727525502997,2.0,2674.6,2674.5,5.30898192]
[1727525503202,2.0,2674.6,2674.5,6.12888192]
[1727525504599,2.0,2674.6,2674.5,4.55891]
[1727525504902,2.0,2674.6,2674.5,6.95867792]
[1727525508803,4.247,2674.6,2673.4,0.5469488]
[1727525508997,4.247,2674.6,2673.3,1.1945]
[1727525508998,2.0,2673.6,2673.3,2.38987192]
[1727525509198,2.0,2673.6,2673.3,2.62885911]
[1727525509503,2.0,2673.6,2673.5,1.56997192]
[1727525510835,2.0,2673.6,2673.3,1.05888719]
[1727525510995,2.0,2673.6,2673.5,1.56997192]
[1727525511938,2.0,2673.6,2672.7,0.128955]
[1727525511939,2.0,2673.2,2672.9,0.8199]
[1727525512125,2.0,2673.2,2673.1,1.56997192]
[1727525512300,2.0,2673.2,2673.1,3.41312751]
[1727525512494,2.0,2673.2,2673.1,3.36312751]
[1727525512926,2.0,2673.2,2673.1,4.52965626]
[1727525513959,2.1305564,2673.2,2673.1,4.52965626]
[1727525514167,2.1305564,2673.2,2673.1,8.27062626]
[1727525514725,2.0,2673.2,2673.1,8.27062626]
[1727525523582,0.38934459,2673.6,2673.5,4.56931]
[1727525523786,2.0,2674.0,2673.9,4.56875]
[1727525524086,2.0,2674.3,2674.2,3.73943]
[1727525524374,2.10668359,2674.3,2674.2,7.15255751]
[1727525524781,2.0,2674.3,2674.2,7.15255751]
[1727525525129,2.10691985,2674.3,2674.2,3.73943]
[1727525525332,2.10691985,2674.3,2674.2,4.82864175]
[1727525525333,2.0,2674.3,2674.2,4.82864175]
[1727525525958,2.10691985,2674.3,2674.2,4.82864175]
[1727525526378,2.0,2674.3,2674.2,4.82864175]
[1727525526968,2.10727079,2674.3,2674.2,4.82864175]
[1727525528266,2.10727079,2674.3,2674.2,3.73943]
[1727525528578,2.10727079,2674.3,2674.1,7.15268751]
[1727525532358,2.10727079,2674.3,2674.1,3.41312751]
[1727525533689,2.10727079,2674.3,2674.1,7.15269751]
[1727525533992,2.10727079,2674.3,2674.1,3.41312751]
[1727525536810,2.10727079,2674.3,2674.1,7.15269751]
[1727525537463,2.10727079,2674.3,2674.1,3.41312751]
[1727525538361,2.0,2673.9,2673.8,7.15308751]
[1727525538811,5.11587059,2674.5,2673.4,1.24]
[1727525538812,2.0,2673.5,2673.4,1.24]
[1727525539167,2.10715605,2673.5,2673.4,1.24]
[1727525541020,9.83506605,2673.5,2673.4,1.24]
[1727525541876,6.09465605,2673.5,2673.4,1.24]
[1727525542208,9.83506605,2673.5,2673.4,1.24]
[1727525542398,6.09465605,2673.5,2673.4,1.24]
[1727525542718,9.83506605,2673.5,2673.4,1.24]
[1727525543615,6.09465605,2673.5,2673.4,1.24]
[1727525543983,9.83506605,2673.5,2673.4,1.24]
[1727525545075,10.22432813,2673.5,2673.4,1.24]
[1727525548367,22.29727113,2673.5,2673.4,1.24]
[1727525548518,17.93569213,2673.5,2673.4,1.24]
[1727525548721,19.88049952,2673.5,2673.4,1.24]
[1727525549015,19.88051419,2673.5,2673.4,1.24]
[1727525549227,17.93569213,2673.5,2673.4,1.24]
[1727525550251,17.11460913,2673.5,2673.4,1.24]
[1727525550564,19.05952245,2673.5,2673.4,1.24]
[1727525551431,17.11460913,2673.5,2673.4,1.24]
[1727525552171,19.05952245,2673.5,2673.4,1.24]
[1727525552469,17.11460913,2673.5,2673.4,1.24]
[1727525554475,19.4494567,2673.5,2673.4,1.24]
[1727525555749,17.11460913,2673.5,2673.4,1.24]
[1727525555949,19.4494567,2673.5,2673.4,1.24]
[1727525556134,19.4494567,2673.5,2673.4,1.14]
[1727525556340,22.86258421,2673.5,2673.4,1.14]
[1727525557159,17.11460913,2673.5,2673.4,1.14]
[1727525557383,19.44833174,2673.5,2673.4,1.14]
[1727525558235,19.44806142,2673.5,2673.4,1.14]
[1727525558660,17.11460913,2673.5,2673.4,1.14]
[1727525559675,20.52773664,2673.5,2673.4,1.14]
[1727525560283,20.91901161,2673.5,2673.4,1.14]
[1727525560950,23.22001161,2673.5,2673.4,1.14]
[1727525561348,25.93993235,2673.5,2673.4,1.14]
[1727525561876,23.22001161,2673.5,2673.4,1.14]
[1727525562171,23.6280098,2673.5,2673.4,1.14]
[1727525562378,26.34660497,2673.5,2673.4,1.14]
[1727525562672,23.6280098,2673.5,2673.4,1.14]
[1727525563006,26.34665066,2673.5,2673.4,1.14]
[1727525563716,25.93865247,2673.5,2673.4,1.14]
[1727525563877,25.5473775,2673.5,2673.4,1.14]
[1727525564274,22.82873664,2673.5,2673.4,1.14]
[1727525564474,22.89382942,2673.5,2673.4,1.14]
[1727525564901,19.48070191,2673.5,2673.4,1.14]
[1727525565177,21.76032135,2673.5,2673.4,1.14]
[1727525565390,22.84382942,2673.5,2673.4,1.14]
[1727525571633,18.44320191,2673.5,2673.4,1.14]
[1727525571806,15.13313893,2673.5,2673.4,1.14]
[1727525572003,15.06804615,2673.5,2673.4,1.14]
[1727525572222,15.06830055,2673.5,2673.4,1.14]
[1727525572627,13.12710913,2673.5,2673.4,1.14]
[1727525573026,16.12710913,2673.5,2673.4,1.14]
[1727525574108,16.51837712,2673.5,2673.4,1.14]
[1727525576648,18.84780683,2673.5,2673.4,1.14]
[1727525576851,16.51837712,2673.5,2673.4,1.14]
[1727525577325,18.85127369,2673.5,2673.4,1.14]
[1727525577530,16.51837712,2673.5,2673.4,1.14]
[1727525578076,17.46247712,2673.5,2673.4,1.14]
[1727525580952,20.6819245,2673.5,2673.4,1.14]
[1727525581776,20.68355146,2673.5,2673.4,1.14]
[1727525582346,17.46247712,2673.5,2673.4,1.14]
[1727525582685,12.87319612,2673.5,2673.4,0.748125]
[1727525582896,63.37319612,2673.5,2673.4,0.748125]
[1727525583046,67.26082107,2673.5,2673.4,0.748125]
[1727525583393,63.37319612,2673.5,2673.4,0.748125]
[1727525584988,63.32319612,2673.5,2673.4,0.748125]
[1727525585691,63.37319612,2673.5,2673.4,0.748125]
[1727525586190,63.32319612,2673.5,2673.4,0.748125]
[1727525586891,63.37319612,2673.5,2673.4,0.748125]
[1727525587062,63.32319612,2673.5,2673.4,0.748125]
[1727525587589,63.32319612,2673.5,2673.4,0.348125]
[1727525592046,63.32319612,2673.5,2673.4,1.303125]
[1727525592047,18.89527012,2673.5,2673.4,1.303125]
[1727525594880,22.77354179,2673.5,2673.4,0.348125]
[1727525596358,39.97243726,2673.5,2673.4,0.348125]
[1727525597571,38.50762479,2673.5,2673.4,0.348125]
[1727525599792,29.00084579,2673.5,2673.4,0.348125]
[1727525602183,25.12257412,2673.5,2673.4,0.348125]
[1727525602798,29.00084579,2673.5,2673.4,0.348125]
[1727525605288,25.12257412,2673.5,2673.4,0.348125]
[1727525606195,29.00408879,2673.5,2673.4,0.348125]
[1727525608420,25.12257412,2673.5,2673.4,0.348125]
[1727525608622,29.00402083,2673.5,2673.4,0.348125]
[1727525609187,29.00401801,2673.5,2673.4,0.348125]
[1727525609533,25.12257412,2673.5,2673.4,0.348125]
[1727525611436,29.00442409,2673.5,2673.4,0.348125]
[1727525611961,27.74381209,2673.5,2673.4,0.348125]
[1727525612253,23.86196212,2673.5,2673.4,0.348125]
[1727525613440,27.74381209,2673.5,2673.4,0.348125]
[1727525613807,23.86196212,2673.5,2673.4,0.348125]
[1727525614207,9.74857112,2673.5,2673.4,1.149225]
[1727525614451,6.62809612,2673.5,2673.4,2.72553298]
[1727525616455,9.3662247,2673.5,2673.4,2.72553298]
[1727525617231,6.62809612,2673.5,2673.4,2.72553298]
[1727525617438,9.3662247,2673.5,2673.4,2.72553298]
[1727525617620,9.3662247,2673.5,2673.4,1.149225]
[1727525618010,6.62809612,2673.5,2673.4,1.149225]
[1727525618534,18.99896312,2673.5,2673.4,1.149225]
[1727525618932,6.62809612,2673.5,2673.4,1.149225]
[1727525619107,17.99160612,2673.5,2673.4,1.149225]
[1727525619314,20.7285861,2673.5,2673.4,1.149225]
[1727525619516,17.99160612,2673.5,2673.4,1.149225]
[1727525620263,16.91494212,2673.5,2673.4,1.149225]
[1727525620552,19.65171593,2673.5,2673.4,1.149225]
[1727525622922,19.65123404,2673.5,2673.4,1.149225]
[1727525626254,18.54587404,2673.5,2673.4,1.149225]
[1727525626866,18.17085004,2673.5,2673.4,1.149225]
[1727525627079,14.66906204,2673.5,2673.4,1.149225]
[1727525627282,12.50512404,2673.5,2673.4,1.149225]
[1727525627778,12.50483434,2673.5,2673.4,1.149225]
[1727525627975,12.50483434,2673.5,2673.4,2.72553298]
[1727525629688,12.50483434,2673.5,2673.4,1.149225]
[1727525630863,12.50545461,2673.5,2673.4,1.149225]
[1727525631375,9.76883212,2673.5,2673.4,1.149225]
[1727525631883,12.50565357,2673.5,2673.4,1.149225]
[1727525632188,9.76883212,2673.5,2673.4,1.149225]
[1727525636689,10.52183212,2673.5,2673.4,0.348125]
[1727525637011,13.52183212,2673.5,2673.4,0.348125]
[1727525637285,16.00331647,2673.5,2673.4,0.348125]
[1727525637655,12.86258047,2673.5,2673.4,0.348125]
[1727525637843,21.68152847,2673.5,2673.4,0.348125]
[1727525639078,23.93252847,2673.5,2673.4,0.348125]
[1727525639284,21.68152847,2673.5,2673.4,0.348125]
[1727525640155,21.68152847,2673.5,2672.7,3.870355]
[1727525640156,2.0,2672.8,2672.7,0.128955]
[1727525640363,21.94276557,2672.8,2672.7,0.128955]
[1727525640562,12.75551257,2672.8,2672.7,0.128955]
[1727525640761,13.14485689,2672.8,2672.7,0.128955]
[1727525640972,13.53615239,2672.8,2672.7,0.128955]
[1727525642016,12.26205639,2672.8,2672.7,0.128955]
[1727525642307,12.26205639,2672.8,2672.7,0.078955]
[1727525643765,19.42417417,2672.8,2672.7,0.078955]
[1727525644000,22.42417417,2672.8,2672.7,0.908755]
[1727525644398,12.34484217,2672.8,2672.7,0.908755]
[1727525645181,9.60918239,2672.8,2672.7,0.908755]
[1727525645511,12.34478194,2672.8,2672.7,0.908755]
[1727525646079,8.60339194,2672.8,2672.7,0.908755]
[1727525646479,5.86779239,2672.8,2672.7,0.908755]
[1727525646678,9.60918239,2672.8,2672.7,0.908755]
[1727525647102,5.86779239,2672.8,2672.7,0.908755]
[1727525648621,2.86779239,2672.8,2672.7,2.48506298]
[1727525649690,2.86779239,2672.8,2672.7,2.93506298]
[1727525652086,2.86779239,2672.8,2672.7,1.358755]
[1727525658657,2.86779239,2672.8,2672.7,2.93506298]
[1727525658658,5.21168523,2672.8,2672.7,2.93506298]
[1727525659008,2.86779239,2672.8,2672.7,2.93506298]
[1727525659643,2.86779239,2672.8,2672.7,2.90121498]
[1727525660004,5.21165024,2672.8,2672.7,2.90121498]
[1727525660200,2.86779239,2672.8,2672.7,2.90121498]
[1727525661441,5.21165024,2672.8,2672.7,2.90121498]
[1727525661641,2.86779239,2672.8,2672.7,2.90121498]
[1727525661847,5.21165024,2672.8,2672.7,2.90121498]
[1727525663052,2.86779239,2672.8,2672.7,2.90121498]
[1727525663351,5.21165024,2672.8,2672.7,2.90121498]
[1727525664533,5.21226243,2672.8,2672.7,2.90121498]
[1727525667207,5.21226243,2672.8,2672.7,1.324907]
[1727525667634,2.86779239,2672.8,2672.7,1.324907]
[1727525667832,5.21256712,2672.8,2672.7,1.324907]
[1727525669347,5.21271407,2672.8,2672.7,1.324907]
[1727525669711,5.21275126,2672.8,2672.7,1.324907]
[1727525671326,2.86779239,2672.8,2672.7,1.324907]
[1727525672255,5.21301017,2672.8,2672.7,1.324907]
[1727525672456,2.86779239,2672.8,2672.7,1.324907]
[1727525677368,2.86779239,2672.8,2672.7,7.30704148]
[1727525677666,2.86779239,2672.8,2672.7,6.64274498]
[1727525678172,2.47844807,2672.8,2672.7,6.64274498]
[1727525678815,2.47844807,2672.8,2672.7,6.71756557]
[1727525679016,2.47844807,2672.8,2672.7,6.64274498]
[1727525679459,0.47844807,2672.8,2672.7,7.23118548]
[1727525679671,0.47844807,2672.8,2672.7,7.30600155]
[1727525682186,0.47844807,2672.8,2672.7,7.30600042]
[1727525682385,0.08715257,2672.8,2672.7,7.30600042]
[1727525682745,2.0,2673.0,2672.9,4.51495]
[1727525682947,2.0,2673.0,2672.9,6.16606641]
[1727525683282,2.07687241,2673.0,2672.9,6.16606641]
[1727525684032,0.07687241,2673.0,2672.9,6.21117349]
[1727525684328,2.0,2673.3,2673.2,3.74083]
[1727525684491,2.0,2673.3,2673.2,5.31713798]
[1727525685005,2.0,2673.3,2673.2,5.36224498]
[1727525685210,2.0,2673.3,2673.2,6.13594498]
[1727525686383,2.0,2673.3,2673.2,6.21074455]
[1727525686586,2.0,2673.3,2673.2,7.3164882]
[1727525696148,2.0,2673.3,2673.2,7.24168863]
[1727525696354,2.0,2673.3,2673.2,0.045107]
[1727525696514,2.07671349,2673.3,2673.2,0.045107]
[1727525697526,2.07671349,2673.3,2673.2,3.785937]
[1727525699891,2.07671349,2673.3,2673.2,0.045107]
[1727525701050,2.46856837,2673.3,2673.2,0.045107]
[1727525702183,3.24476837,2673.3,2673.2,0.045107]
[1727525702394,5.19467266,2673.3,2673.2,0.045107]
[1727525703970,5.19512726,2673.3,2673.2,0.045107]
[1727525704712,3.24476837,2673.3,2673.2,0.045107]
[1727525705769,5.19564486,2673.3,2673.2,0.045107]
[1727525706170,6.98545837,2673.3,2673.2,0.045107]
[1727525711684,3.24476837,2673.3,2673.2,0.045107]
[1727525712218,6.98545837,2673.3,2673.2,0.045107]
[1727525712811,9.98545837,2673.3,2673.2,0.045107]
[1727525713617,12.32783601,2673.3,2673.2,0.045107]
[1727525714591,12.32816001,2673.3,2673.2,0.045107]
[1727525715023,9.98545837,2673.3,2673.2,0.045107]
[1727525715219,12.3281542,2673.3,2673.2,0.045107]
[1727525716613,9.98545837,2673.3,2673.2,0.045107]
[1727525717021,8.58800712,2673.3,2673.2,0.045107]
[1727525717228,6.24476837,2673.3,2673.2,0.045107]
[1727525717432,8.58800712,2673.3,2673.2,0.045107]
[1727525718298,6.24476837,2673.3,2673.2,0.045107]
[1727525718602,8.58800712,2673.3,2673.2,0.045107]
[1727525718800,6.24476837,2673.3,2673.2,0.045107]
[1727525719392,8.58800712,2673.3,2673.2,0.045107]
[1727525719814,8.58896735,2673.3,2673.2,0.045107]
[1727525721073,12.32965735,2673.3,2673.2,0.045107]
[1727525721228,9.98545837,2673.3,2673.2,0.045107]
[1727525722747,27.33968637,2673.3,2673.2,0.045107]
[1727525723316,30.57028559,2673.3,2673.2,0.045107]
[1727525723515,27.33968637,2673.3,2673.2,0.045107]
[1727525723854,30.57028559,2673.3,2673.2,0.045107]
[1727525724001,27.33968637,2673.3,2673.2,0.045107]
[1727525731138,30.07282319,2673.3,2673.2,0.045107]
[1727525731474,13.47541037,2673.3,2673.2,0.045107]
[1727525732271,13.52640545,2673.3,2673.2,0.045107]
[1727525732486,16.25954227,2673.3,2673.2,0.045107]
[1727525732857,13.52640545,2673.3,2673.2,0.045107]
[1727525733057,12.36265345,2673.3,2673.2,0.045107]
[1727525733283,10.03645345,2673.3,2673.2,0.045107]
[1727525733944,16.09930345,2673.3,2673.2,0.045107]
[1727525734494,18.83354581,2673.3,2673.2,0.045107]
[1727525735082,16.09930345,2673.3,2673.2,0.045107]
[1727525736864,19.32912724,2673.3,2673.2,0.045107]
[1727525737254,16.09930345,2673.3,2673.2,0.045107]
[1727525737685,19.33068663,2673.3,2673.2,0.045107]
[1727525738890,16.09930345,2673.3,2673.2,0.045107]
[1727525742208,47.95694045,2673.3,2673.2,0.045107]
[1727525742370,37.01489845,2673.3,2673.2,0.045107]
[1727525742577,34.34449045,2673.3,2673.2,0.045107]
[1727525749384,34.34449045,2673.3,2673.2,0.0318392]
[1727525750112,38.22634042,2673.3,2673.2,0.0318392]
[1727525750417,34.34449045,2673.3,2673.2,0.0318392]
[1727525751818,31.10376645,2673.3,2673.2,0.0318392]
[1727525752324,27.16822245,2673.3,2673.2,0.0318392]
[1727525753104,31.05007242,2673.3,2673.2,0.0318392]
[1727525753984,27.16822245,2673.3,2673.2,0.0318392]
[1727525755347,31.05007242,2673.3,2673.2,0.0318392]
[1727525756251,27.16822245,2673.3,2673.2,0.0318392]
[1727525756612,31.05007242,2673.3,2673.2,0.0318392]
[1727525757516,27.16822245,2673.3,2673.2,0.0318392]
[1727525757716,31.0506105,2673.3,2673.2,0.0318392]
[1727525758053,27.16822245,2673.3,2673.2,0.0318392]
[1727525758208,31.05055965,2673.3,2673.2,0.0318392]
[1727525758408,27.16822245,2673.3,2673.2,0.0318392]
[1727525762457,27.6049417,2673.3,2673.2,0.0318392]
[1727525763826,29.18124968,2673.3,2673.2,0.0318392]
[1727525764409,31.87510086,2673.3,2673.2,0.0318392]
[1727525765916,36.408331,2673.3,2673.2,0.0318392]
[1727525766331,54.64959218,2673.3,2673.2,0.0318392]
[1727525766531,51.78725175,2673.3,2673.2,0.0318392]
[1727525767361,71.23725175,2673.3,2673.2,1e-08]
[1727525767566,71.23725175,2673.3,2670.8,3.74418]
[1727525767567,2.0,2670.9,2670.8,3.74418]
[1727525767731,2.0,2670.9,2670.8,5.32048798]
[1727525768047,2.12054005,2670.9,2670.8,6.14288798]
[1727525769633,2.12054005,2670.9,2670.8,4.56658]
[1727525769962,2.12054005,2670.9,2670.8,6.14288798]
[1727525770571,2.12054005,2670.9,2670.8,7.14461373]
[1727525773171,2.12054005,2670.9,2670.8,5.56830575]
[1727525773377,2.12054005,2670.9,2670.8,2.39870798]
[1727525774129,2.12054005,2670.9,2670.8,6.14289798]
[1727525774491,2.12054005,2670.9,2670.8,4.56659]
[1727525774793,2.12054005,2670.9,2670.8,6.14289798]
[1727525775129,2.12054005,2670.9,2670.8,7.14461673]
[1727525775596,2.12054005,2670.9,2670.8,5.56830875]
[1727525775803,2.12054005,2670.9,2670.8,6.14289798]
[1727525779432,2.12054005,2670.9,2670.8,2.39870798]
[1727525780005,2.12054005,2670.9,2670.7,3.8743795]
[1727525780211,2.12054005,2670.9,2670.7,0.1300495]
[1727525780696,5.86460005,2670.9,2670.7,0.1300495]
[1727525780899,3.0,2670.8,2670.7,0.1300495]
[1727525781197,3.114783,2670.8,2670.7,0.1300495]
[1727525781826,6.858973,2670.8,2670.7,0.1300495]
[1727525783534,7.25095112,2670.8,2670.7,0.1300495]
[1727525784197,47.88786487,2670.8,2670.7,0.1300495]
[1727525784537,45.94435712,2670.8,2670.7,0.1300495]
[1727525785037,43.65198512,2670.8,2670.7,0.1300495]
[1727525785237,45.59473783,2670.8,2670.7,0.1300495]
[1727525786036,45.59471287,2670.8,2670.7,0.1300495]
[1727525786334,43.65198512,2670.8,2670.7,0.1300495]